fUST/lending_fUST_20251014
["ID","MTS","AMOUNT","RATE_DAILY","PERIOD"]
[391233748,1760422243649,-396.349476,0.00019406,7]
[391233749,1760422243658,-151.0,0.00019406,2]
[391233750,1760422243667,-396.349476,0.00019406,7]
[391233751,1760422243676,-152.41691668,0.00019406,2]
[391233752,1760422243685,-153.32465629,0.00019406,2]
[391233753,1760422243694,-396.349476,0.00019406,7]
[391233755,1760422243708,-500.0,0.00019406,2]
[391233756,1760422243717,-500.0,0.00019406,2]
[391233757,1760422243726,-197.999997,0.00019406,2]
[391233758,1760422243736,-154.37356518,0.00019406,2]
[391233759,1760422243745,-151.0,0.00019406,2]
[391233760,1760422243754,-151.0,0.00019406,2]
[391233761,1760422243763,-151.0,0.00019406,7]
[391233762,1760422243772,-151.0,0.00019406,7]
[391233763,1760422243782,-583.122522,0.00019406,7]
[391233764,1760422243791,-151.75333463,0.00019406,2]
[391233765,1760422243800,-402.43064913,0.00019406,7]
[391233766,1760422243809,-583.122522,0.00019406,7]
[391233767,1760422243818,-583.122522,0.00019406,7]
[391233768,1760422243829,-583.122522,0.00019406,7]
[391233769,1760422243838,-151.0,0.00019406,2]
[391233770,1760422243848,-151.0,0.00019406,2]
[391233771,1760422243858,-151.43237619,0.00019406,2]
[391233772,1760422243867,-151.24075468,0.00019406,2]
[391233773,1760422243876,-500.0,0.00019406,2]
[391233774,1760422243885,-151.0,0.00019406,7]
[391233775,1760422243894,-158.024921,0.00019406,7]
[391233776,1760422243903,-151.0,0.00019406,7]
[391233777,1760422243914,-151.0,0.00019406,7]
[391233778,1760422243923,-151.0,0.00019406,7]
[391233779,1760422243932,-151.0,0.00019406,2]
[391233780,1760422243941,-151.0,0.00019406,7]
[391233781,1760422243951,-1828.975288,0.00019406,7]
[391233782,1760422243962,-151.0,0.00019406,7]
[391233783,1760422243974,-151.0,0.00019406,7]
[391233784,1760422243984,-151.0,0.00019406,7]
[391233785,1760422243997,-1828.975288,0.00019406,7]
[391233786,1760422244007,-151.0,0.00019406,7]
[391233787,1760422244017,-1828.975288,0.00019406,7]
[391233788,1760422244028,-500.0,0.00019406,2]
[391233789,1760422244039,-151.0,0.00019407,7]
[391233790,1760422244050,-151.0,0.00019407,7]
[391233791,1760422244062,-241.571953,0.00019407,7]
[391233792,1760422244073,-151.0,0.00019407,7]
[391233793,1760422244083,-151.0,0.00019407,7]
[391233794,1760422244093,-151.0,0.00019407,7]
[391233795,1760422244105,-151.0,0.00019407,7]
[391233796,1760422244115,-151.0,0.00019407,7]
[391233797,1760422244125,-151.0,0.00019407,7]
[391233798,1760422244136,-151.0,0.00019407,7]
[391233799,1760422244147,-273.161817,0.00019407,7]
[391233800,1760422244157,-273.161817,0.00019407,7]
[391233801,1760422244167,-273.161817,0.00019407,7]
[391233802,1760422244176,-151.0,0.00019407,7]
[391233805,1760422244185,-273.161817,0.00019407,7]
[391233806,1760422244195,-151.0,0.00019407,7]
[391233807,1760422244204,-151.0,0.00019407,7]
[391233808,1760422244220,-199.85232,0.00019407,7]
[391233809,1760422244229,-199.85232,0.00019407,7]
[391233810,1760422244238,-199.85232,0.00019407,7]
[391233811,1760422244250,-151.0,0.00019407,7]
[391233812,1760422244259,-199.85232,0.00019407,7]
[391233813,1760422244269,-214.481887,0.00019407,7]
[391233814,1760422244278,-214.481887,0.00019407,7]
[391233815,1760422244287,-214.481887,0.00019407,7]
[391233816,1760422244393,-214.481887,0.00019407,7]
[391233817,1760422244403,-151.0,0.00019407,7]
[391233818,1760422244412,-164.862136,0.00019407,7]
[391233819,1760422244421,-164.862136,0.00019407,7]
[391233820,1760422244430,-164.862136,0.00019407,7]
[391233821,1760422244439,-164.862136,0.00019407,7]
[391233822,1760422244449,-151.0,0.00019407,7]
[391233823,1760422244463,-151.0,0.00019407,7]
[391233824,1760422244473,-151.0,0.00019407,7]
[391233825,1760422244481,-151.0,0.00019407,7]
[391233826,1760422244489,-151.0,0.00019407,7]
[391233827,1760422244498,-151.0,0.00019407,7]
[391233828,1760422244507,-151.0,0.00019407,7]
[391233829,1760422244516,-151.0,0.00019407,7]
[391233830,1760422244525,-151.0,0.00019407,7]
[391233831,1760422244534,-151.0,0.00019407,7]
[391233832,1760422244543,-193.259809,0.00019407,7]
[391233833,1760422244552,-151.0,0.00019407,7]
[391233834,1760422244562,-193.259809,0.00019407,7]
[391233835,1760422244571,-193.259809,0.00019407,7]
[391233836,1760422244580,-193.259809,0.00019407,7]
[391233837,1760422244589,-396.349476,0.00019407,7]
[391233838,1760422244599,-396.349476,0.00019407,7]
[391233839,1760422244608,-396.349476,0.00019407,7]
[391233840,1760422244617,-396.349476,0.00019407,7]
[391233841,1760422244626,-197.123568,0.00019407,7]
[391233842,1760422244636,-151.0,0.00019407,7]
[391233843,1760422244645,-583.122522,0.00019407,7]
[391233844,1760422244655,-583.122522,0.00019407,7]
[391233845,1760422244664,-583.122522,0.00019407,7]
[391233846,1760422244674,-583.122522,0.00019407,7]
[391233847,1760422244683,-151.0,0.00019407,7]
[391233848,1760422244692,-152.489975,0.00019407,7]
[391233849,1760422244702,-151.0,0.00019407,7]
[391233850,1760422244716,-292.564823,0.00019407,2]
[391233851,1760422244725,-151.0,0.00019407,7]
[391233852,1760422244734,-151.0,0.00019407,7]
[391233853,1760422244743,-1828.975288,0.00019407,7]
[391233854,1760422244752,-151.0,0.00019407,7]
[391233855,1760422244761,-151.0,0.00019407,7]
[391233856,1760422244769,-151.0,0.00019407,7]
[391233857,1760422244781,-1828.975288,0.00019407,7]
[391233858,1760422244795,-151.0,0.00019407,7]
[391233859,1760422244805,-151.0,0.00019407,2]
[391233860,1760422244814,-151.0,0.00019407,2]
[391233861,1760422244823,-151.0,0.00019407,2]
[391233862,1760422244832,-151.0,0.00019407,2]
[391233863,1760422244842,-151.0,0.00019407,2]
[391233864,1760422244851,-151.0,0.00019407,2]
[391233865,1760422244860,-151.0,0.00019407,2]
[391233866,1760422244868,-151.0,0.00019407,2]
[391233867,1760422244877,-151.0,0.00019407,2]
[391233868,1760422244887,-151.0,0.00019407,2]
[391233869,1760422244897,-151.0,0.00019407,2]
[391233870,1760422244906,-151.0,0.00019407,2]
[391233871,1760422244915,-151.0,0.00019407,2]
[391233872,1760422244924,-151.0,0.00019407,2]
[391233873,1760422244933,-151.0,0.00019407,2]
[391233874,1760422244942,-151.0,0.00019407,2]
[391233875,1760422244951,-293.24081837,0.00019407,2]
[391233876,1760422244961,-600.0,0.00019457,2]
[391233877,1760422244970,-502.24230485,0.00019461,2]
[391233878,1760422244980,-151.0,0.00019461,2]
[391233879,1760422244989,-500.0,0.00019461,2]
[391233880,1760422244998,-500.0,0.00019461,2]
[391233881,1760422245007,-152.00857573,0.00019461,2]
[391233882,1760422245016,-151.0,0.00019461,2]
[391233883,1760422245026,-151.0,0.00019461,2]
[391233884,1760422245035,-500.0,0.00019461,2]
[391233885,1760422245044,-500.0,0.00019473,2]
[391233886,1760422245053,-453.92522678,0.00019473,2]
[391233887,1760422245062,-500.0,0.00019473,2]
[391233888,1760422245072,-500.0,0.00019473,2]
[391233889,1760422245081,-500.0,0.00019473,2]
[391233890,1760422245091,-500.0,0.00019473,2]
[391233891,1760422245100,-500.0,0.00019473,2]
[391233892,1760422245109,-500.0,0.00019473,2]
[391233893,1760422245118,-500.0,0.00019473,2]
[391233894,1760422245127,-500.0,0.00019473,2]
[391233895,1760422245136,-500.0,0.00019473,2]
[391233896,1760422245145,-500.0,0.00019473,2]
[391233897,1760422245154,-500.0,0.00019473,2]
[391233898,1760422245163,-500.0,0.00019473,2]
[391233899,1760422245172,-500.0,0.00019473,2]
[391233900,1760422245181,-500.0,0.00019473,2]
[391233901,1760422245190,-500.0,0.00019473,2]
[391233902,1760422245199,-457.2860564,0.00019473,2]
[391233903,1760422245208,-500.0,0.00019473,2]
[391233904,1760422245218,-500.0,0.00019473,2]
[391233905,1760422245227,-500.0,0.00019473,2]
[391233906,1760422245237,-500.0,0.00019473,2]
[391233907,1760422245247,-500.0,0.00019473,2]
[391233908,1760422245256,-294.3077118,0.00019505,2]
[391233909,1760422245265,-151.0,0.00019505,2]
[391233910,1760422245274,-500.0,0.00019505,2]
[391233911,1760422245283,-500.0,0.00019505,2]
[391233912,1760422245292,-151.0,0.00019505,2]
[391233913,1760422245301,-154.12216633,0.00019505,2]
[391233914,1760422245311,-500.0,0.00019505,2]
[391233915,1760422245320,-500.0,0.00019505,2]
[391233916,1760422245329,-238.66509379,0.00019505,2]
[391233917,1760422245338,-216.23137826,0.00019505,2]
[391233918,1760422245347,-152.14742799,0.00019505,2]
[391233919,1760422245356,-151.0,0.00019505,2]
[391233920,1760422245365,-500.0,0.00019505,2]
[391233921,1760422245375,-500.0,0.00019506,2]
[391233922,1760422245384,-500.0,0.00019506,2]
[391233923,1760422245393,-500.0,0.00019506,2]
[391233924,1760422245402,-500.0,0.00019506,2]
[391233925,1760422245412,-500.0,0.00019506,2]
[391233926,1760422245424,-500.0,0.00019506,2]
[391233927,1760422245439,-500.0,0.00019506,2]
[391233928,1760422245448,-321.35591814,0.00019506,2]
[391233929,1760422245457,-500.0,0.00019506,2]
[391233930,1760422245469,-500.0,0.00019506,2]
[391233931,1760422245479,-500.0,0.00019506,2]
[391233932,1760422245488,-500.0,0.00019506,2]
[391233933,1760422245497,-500.0,0.00019506,2]
[391233934,1760422245516,-279.08336538,0.00019506,2]
[391233935,1760422245531,-558.35,0.00019506,2]
[391233936,1760422245539,-500.0,0.00019506,2]
[391233937,1760422245549,-500.0,0.00019506,2]
[391233938,1760422245557,-502.81059972,0.00019506,2]
[391233939,1760422245566,-356.0540103,0.00019506,2]
[391233940,1760422245576,-503.42198365,0.00019506,2]
[391233941,1760422245585,-500.0,0.00019506,2]
[391233942,1760422245594,-604.12665002,0.00019506,2]
[391233943,1760422245603,-500.0,0.00019506,2]
[391233944,1760422245612,-510.3957899,0.00019506,2]
[391233945,1760422245621,-501.74502493,0.00019506,2]
[391233946,1760422245630,-500.0,0.00019506,2]
[391233947,1760422245639,-500.0,0.00019506,2]
[391233948,1760422245648,-500.0,0.00019506,2]
[391233949,1760422245658,-500.0,0.00019506,2]
[391233950,1760422245667,-500.0,0.00019506,2]
[391233951,1760422245676,-500.0,0.00019506,2]
[391233952,1760422245685,-270.79,0.00019506,2]
[391233953,1760422245694,-500.0,0.00019506,2]
[391233954,1760422245703,-500.0,0.00019506,2]
[391233955,1760422245717,-500.0,0.00019506,2]
[391233956,1760422245726,-500.0,0.00019506,2]
[391233957,1760422245735,-500.0,0.00019506,2]
[391233958,1760422245745,-500.0,0.00019506,2]
[391233959,1760422245754,-500.0,0.00019506,2]
[391233960,1760422245763,-377.95,0.00019506,2]
[391233961,1760422245772,-500.0,0.00019506,2]
[391233962,1760422245781,-500.0,0.00019506,2]
[391233963,1760422245793,-500.0,0.00019506,2]
[391233964,1760422245806,-500.0,0.00019506,2]
[391233966,1760422245816,-408.96,0.00019506,2]
[391233968,1760422245825,-500.57936197,0.00019506,2]
[391233969,1760422245833,-151.0,0.00019506,7]
[391233970,1760422245842,-151.0,0.00019506,7]
[391233971,1760422245851,-151.0,0.00019506,7]
[391233972,1760422245860,-884.764037,0.00019506,7]
[391233973,1760422245869,-884.764037,0.00019506,7]
[391233975,1760422245879,-884.764037,0.00019506,7]
[391233977,1760422245888,-884.764037,0.00019506,7]
[391233979,1760422245897,-208.589073,0.00019506,7]
[391233980,1760422245907,-151.0,0.00019506,7]
[391233981,1760422245917,-208.589073,0.00019506,7]
[391233982,1760422245926,-208.589073,0.00019506,7]
[391233983,1760422245935,-208.589073,0.00019506,7]
[391233984,1760422245944,-379.148542,0.00019506,7]
[391233985,1760422245953,-379.148542,0.00019506,7]
[391233986,1760422245966,-379.148542,0.00019506,7]
[391233987,1760422245976,-379.148542,0.00019506,7]
[391233988,1760422245985,-151.0,0.00019506,7]
[391233989,1760422245994,-151.0,0.00019506,7]
[391233990,1760422246003,-154.884315,0.00019506,7]
[391233991,1760422246012,-154.884315,0.00019506,7]
[391233992,1760422246021,-151.0,0.00019506,7]
[391233993,1760422246031,-1000.0,0.00019506,2]
[391233994,1760422246040,-1000.0,0.00019506,2]
[391233995,1760422246049,-1000.0,0.00019506,2]
[391233996,1760422246058,-154.884315,0.00019506,7]
[391233997,1760422246067,-1000.0,0.00019506,2]
[391233998,1760422246077,-1000.0,0.00019506,2]
[391233999,1760422246086,-1000.0,0.00019506,2]
[391234000,1760422246095,-1000.0,0.00019506,2]
[391234001,1760422246105,-1000.0,0.00019506,2]
[391234002,1760422246114,-154.884315,0.00019506,7]
[391234003,1760422246124,-1000.0,0.00019506,2]
[391234004,1760422246133,-1000.0,0.00019506,2]
[391234005,1760422246143,-1000.0,0.00019506,2]
[391234006,1760422246151,-1000.0,0.00019506,2]
[391234007,1760422246161,-1000.0,0.00019506,2]
[391234008,1760422246170,-152.193405,0.00019506,7]
[391234009,1760422246179,-1000.0,0.00019506,2]
[391234010,1760422246188,-1000.0,0.00019506,2]
[391234011,1760422246197,-1000.0,0.00019506,2]
[391234012,1760422246206,-1000.0,0.00019506,2]
[391234013,1760422246218,-1000.0,0.00019506,2]
[391234014,1760422246227,-1000.0,0.00019506,2]
[391234015,1760422246237,-1000.0,0.00019506,2]
[391234016,1760422246246,-1000.0,0.00019506,2]
[391234017,1760422246255,-193.963338,0.00019506,7]
[391234018,1760422246265,-1000.0,0.00019506,2]
[391234019,1760422246275,-1000.0,0.00019506,2]
[391234020,1760422246284,-1000.0,0.00019506,2]
[391234021,1760422246294,-151.0,0.00019506,7]
[391234022,1760422246303,-1000.0,0.00019506,2]
[391234023,1760422246312,-1000.0,0.00019506,2]
[391234024,1760422246322,-193.963338,0.00019506,7]
[391234025,1760422246332,-151.0,0.00019506,7]
[391234026,1760422246341,-1000.0,0.00019506,2]
[391234027,1760422246350,-1026.879911,0.00019506,2]
[391234028,1760422246359,-151.0,0.00019506,7]
[391234029,1760422246368,-193.963338,0.00019506,7]
[391234030,1760422246377,-193.963338,0.00019506,7]
[391234031,1760422246386,-273.161817,0.00019506,7]
[391234032,1760422246395,-151.0,0.00019506,7]
[391234033,1760422246404,-273.161817,0.00019506,7]
[391234034,1760422246413,-273.161817,0.00019506,7]
[391234035,1760422246422,-151.0,0.00019506,7]
[391234036,1760422246431,-273.161817,0.00019506,7]
[391234037,1760422246440,-151.0,0.00019506,7]
[391234038,1760422246450,-151.0,0.00019506,7]
[391234039,1760422246459,-199.85232,0.00019506,7]
[391234040,1760422246469,-199.85232,0.00019506,7]
[391234041,1760422246478,-199.85232,0.00019506,7]
[391234042,1760422246487,-218.63476,0.00019506,7]
[391234043,1760422246496,-199.85232,0.00019506,7]
[391234044,1760422246505,-214.481887,0.00019506,7]
[391234045,1760422246515,-214.481887,0.00019506,7]
[391234046,1760422246524,-214.481887,0.00019506,7]
[391234047,1760422246534,-214.481887,0.00019506,7]
[391234048,1760422246544,-151.0,0.00019506,7]
[391234049,1760422246554,-164.862136,0.00019506,7]
[391234050,1760422246563,-164.862136,0.00019506,7]
[391234051,1760422246573,-164.862136,0.00019506,7]
[391234052,1760422246583,-164.862136,0.00019506,7]
[391234053,1760422246593,-170.373339,0.00019506,7]
[391234054,1760422246602,-151.0,0.00019506,7]
[391234055,1760422246612,-151.0,0.00019506,7]
[391234056,1760422246621,-151.0,0.00019506,7]
[391234057,1760422246631,-151.0,0.00019506,7]
[391234058,1760422246640,-151.0,0.00019506,7]
[391234059,1760422246649,-151.0,0.00019506,7]
[391234060,1760422246658,-151.0,0.00019506,7]
[391234061,1760422246668,-151.0,0.00019506,7]
[391234062,1760422246677,-151.0,0.00019506,7]
[391234063,1760422246686,-193.259809,0.00019506,7]
[391234064,1760422246695,-151.0,0.00019506,7]
[391234065,1760422246704,-193.259809,0.00019506,7]
[391234066,1760422246721,-193.259809,0.00019506,7]
[391234067,1760422246730,-193.259809,0.00019506,7]
[391234068,1760422246740,-396.349476,0.00019506,7]
[391234069,1760422246750,-396.349476,0.00019506,7]
[391234070,1760422246759,-396.349476,0.00019506,7]
[391234071,1760422246768,-396.349476,0.00019506,7]
[391234072,1760422246869,-151.85175,0.00019506,7]
[391234073,1760422246878,-583.122522,0.00019506,7]
[391234074,1760422246887,-583.122522,0.00019506,7]
[391234075,1760422246896,-583.122522,0.00019506,7]
[391234076,1760422246905,-583.122522,0.00019506,7]
[391234077,1760422246914,-151.0,0.00019506,7]
[391234078,1760422246924,-151.0,0.00019506,7]
[391234079,1760422246933,-151.0,0.00019506,7]
[391234080,1760422246942,-151.0,0.00019506,7]
[391234081,1760422246951,-1828.975288,0.00019506,7]
[391234082,1760422246963,-151.0,0.00019506,7]
[391234083,1760422246973,-151.0,0.00019506,7]
[391234084,1760422246982,-151.0,0.00019506,7]
[391234085,1760422246991,-1828.975288,0.00019506,7]
[391234086,1760422247002,-151.0,0.00019506,7]
[391234087,1760422247011,-151.0,0.00019516,2]
[391234088,1760422247021,-153.46248783,0.00019516,2]
[391234089,1760422247030,-500.0,0.00019516,2]
[391234090,1760422247040,-198.93426403,0.00019516,2]
[391234091,1760422247055,-151.0,0.00019516,2]
[391234092,1760422247065,-266.42671123,0.00019516,2]
[391234093,1760422247075,-701.26,0.00019525,2]
[391234094,1760422247084,-809.55287803,0.0001953,2]
[391234095,1760422247093,-151.0,0.0001956,2]
[391234096,1760422247103,-500.0,0.0001956,2]
[391234097,1760422247113,-500.0,0.0001956,2]
[391234098,1760422247122,-151.0,0.0001956,2]
[391234099,1760422247131,-151.0,0.0001956,2]
[391234100,1760422247141,-151.0,0.0001957,2]
[391234101,1760422247151,-500.0,0.0001957,2]
[391234102,1760422247159,-151.0,0.0001957,2]
[391234103,1760422247168,-230.18665669,0.00019607,2]
[391234104,1760422247178,-552.49489902,0.00019607,2]
[391234105,1760422247187,-356.56784958,0.00019607,2]
[391234106,1760422247196,-1426.27139832,0.00019607,2]
[391234107,1760422247205,-3209.11064622,0.00019607,2]
[391234108,1760422247216,-720.95278743,0.00019607,2]
[391234109,1760422247225,-1297.71501738,0.00019607,2]
[391234110,1760422247235,-919.82588014,0.00019607,2]
[391234111,1760422247244,-2209.97959607,0.00019607,2]
[391234112,1760422247252,-4967.48163707,0.00019607,2]
[391234113,1760422247263,-569.16381391,0.00019607,2]
[391234114,1760422247275,-5699.38050768,0.00019607,2]
[391234115,1760422247285,-2307.04891978,0.00019607,2]
[391234116,1760422247293,-3604.76393716,0.00019607,2]
[391234117,1760422247303,-5190.86006951,0.00019607,2]
[391234118,1760422247314,-7065.33731683,0.00019607,2]
[391234119,1760422247324,-9228.19567913,0.00019607,2]
[391234120,1760422247334,-151.0,0.00019607,7]
[391234121,1760422247344,-282.509021,0.00019607,7]
[391234122,1760422247353,-151.0,0.00019607,7]
[391234123,1760422247362,-151.0,0.00019607,7]
[391234124,1760422247371,-151.0,0.00019607,7]
[391234125,1760422247380,-151.0,0.00019607,7]
[391234126,1760422247389,-151.0,0.00019607,7]
[391234127,1760422247398,-151.0,0.00019607,7]
[391234128,1760422247408,-151.0,0.00019607,7]
[391234129,1760422247419,-193.259809,0.00019607,7]
[391234130,1760422247428,-151.0,0.00019607,7]
[391234131,1760422247439,-193.259809,0.00019607,7]
[391234132,1760422247450,-193.259809,0.00019607,7]
[391234133,1760422247459,-193.259812,0.00019607,7]
[391234134,1760422247471,-396.349476,0.00019607,7]
[391234135,1760422247480,-396.349476,0.00019607,7]
[391234136,1760422247489,-396.349476,0.00019607,7]
[391234137,1760422247498,-396.34947,0.00019607,7]
[391234138,1760422247507,-583.122522,0.00019607,7]
[391234139,1760422247516,-583.122522,0.00019607,7]
[391234140,1760422247525,-583.122522,0.00019607,7]
[391234141,1760422247536,-583.122526,0.00019607,7]
[391234142,1760422247545,-500.0,0.00019609,2]
[391234143,1760422247554,-151.0,0.00019615,2]
[391234144,1760422247563,-500.0,0.00019615,2]
[391234145,1760422247574,-500.0,0.00019615,2]
[391234146,1760422247583,-152.33652393,0.00019615,2]
[391234147,1760422247592,-154.95186631,0.00019615,2]
[391234148,1760422247601,-201.44766508,0.00019625,2]
[391234149,1760422247610,-500.0,0.00019625,2]
[391234150,1760422247619,-194.12412098,0.00019625,2]
[391234151,1760422247629,-151.0,0.00019669,2]
[391234152,1760422247638,-177.37349819,0.00019669,2]
[391234153,1760422247647,-413.16741655,0.00019669,2]
[391234154,1760422247656,-3004.58,0.00019671,2]
[391234155,1760422247665,-500.0,0.0001968,2]
[391234156,1760422247674,-500.0,0.0001968,2]
[391234157,1760422247683,-2276.65525565,0.00019685,2]
[391234158,1760422247692,-348.0,0.0001969,2]
[391234159,1760422247702,-153.89874526,0.00019724,2]
[391234160,1760422247717,-500.0,0.00019735,2]
[391234161,1760422247727,-500.0,0.0001979,2]
[391234162,1760422247735,-151.0,0.00019798,7]
[391234163,1760422247745,-151.0,0.00019798,7]
[391234164,1760422247754,-151.0,0.00019798,7]
[391234165,1760422247763,-151.0,0.00019798,7]
[391234166,1760422247771,-151.0,0.00019798,7]
[391234167,1760422247782,-151.0,0.00019798,7]
[391234168,1760422247793,-151.0,0.00019798,7]
[391234169,1760422247803,-151.0,0.000198,2]
[391234170,1760422247814,-443.091,0.00019809,2]
[391234171,1760422247822,-181.29268049,0.00019809,2]
[391234172,1760422247832,-500.0,0.00019824,2]
[391234173,1760422247841,-151.0,0.00019825,7]
[391234174,1760422247850,-156.998648,0.00019825,7]
[391234175,1760422247859,-151.0,0.00019825,7]
[391234176,1760422247868,-151.0,0.00019825,7]
[391234177,1760422247878,-151.643392,0.00019825,7]
[391234178,1760422247887,-151.0,0.00019825,7]
[391234179,1760422247896,-151.0,0.00019825,7]
[391234180,1760422247906,-151.0,0.00019825,7]
[391234181,1760422247915,-151.0,0.00019825,7]
[391234182,1760422247924,-151.0,0.00019825,7]
[391234183,1760422247933,-151.0,0.00019825,7]
[391234184,1760422247942,-151.0,0.00019825,7]
[391234185,1760422247951,-151.0,0.00019825,7]
[391234186,1760422247963,-151.0,0.00019825,7]
[391234187,1760422247972,-151.0,0.00019825,7]
[391234188,1760422247981,-158.916977,0.00019825,7]
[391234189,1760422247991,-500.0,0.00019826,2]
[391234190,1760422247999,-151.0,0.00019827,7]
[391234191,1760422248009,-152.30812147,0.00019827,7]
[391234192,1760422248018,-199.413026,0.00019827,7]
[391234193,1760422248027,-151.0,0.00019827,7]
[391234194,1760422248037,-151.0,0.00019827,7]
[391234195,1760422248047,-199.413026,0.00019827,7]
[391234196,1760422248057,-155.582485,0.00019827,7]
[391234197,1760422248066,-199.413026,0.00019827,7]
[391234198,1760422248075,-199.413026,0.00019827,7]
[391234199,1760422248084,-151.0,0.00019827,7]
[391234200,1760422248094,-151.0,0.00019827,7]
[391234201,1760422248103,-151.0,0.00019827,7]
[391234202,1760422248111,-151.0,0.00019827,7]
[391234203,1760422248121,-151.0,0.00019827,7]
[391234204,1760422248130,-151.0,0.00019827,7]
[391234205,1760422248139,-151.0,0.00019827,7]
[391234206,1760422248147,-152.383952,0.00019827,7]
[391234207,1760422248156,-158.905517,0.00019827,7]
[391234208,1760422248165,-151.0,0.00019827,7]
[391234209,1760422248174,-275.181759,0.00019827,7]
[391234210,1760422248182,-275.181759,0.00019827,7]
[391234211,1760422248191,-275.181759,0.00019827,7]
[391234212,1760422248200,-275.181759,0.00019827,7]
[391234213,1760422248209,-500.0,0.00019844,2]
[391234214,1760422248219,-151.0,0.00019855,7]
[391234215,1760422248228,-151.0,0.00019855,7]
[391234216,1760422248238,-151.0,0.00019855,7]
[391234217,1760422248247,-151.0,0.00019855,7]
[391234218,1760422248257,-1828.975288,0.00019855,7]
[391234219,1760422248268,-151.0,0.00019855,7]
[391234220,1760422248277,-151.0,0.00019855,7]
[391234221,1760422248286,-1828.975288,0.00019855,7]
[391234222,1760422248296,-19292.2273969,0.00019855,2]
[391234223,1760422248305,-168.3888056,0.00019855,2]
[391234224,1760422248314,-151.0,0.00019855,2]
[391234225,1760422248323,-406.7103677,0.00019876,2]
[391234226,1760422248332,-151.728024,0.00019884,7]
[391234227,1760422248342,-884.764037,0.00019884,7]
[391234228,1760422248351,-884.764037,0.00019884,7]
[391234229,1760422248360,-884.764037,0.00019884,7]
[391234230,1760422248369,-884.764037,0.00019884,7]
[391234231,1760422248378,-208.589073,0.00019884,7]
[391234232,1760422248388,-151.0,0.00019884,7]
[391234233,1760422248397,-208.589073,0.00019884,7]
[391234234,1760422248406,-208.589073,0.00019884,7]
[391234235,1760422248415,-208.589073,0.00019884,7]
[391234236,1760422248424,-379.148542,0.00019884,7]
[391234237,1760422248433,-379.148542,0.00019884,7]
[391234238,1760422248442,-379.148542,0.00019884,7]
[391234239,1760422248451,-379.148542,0.00019884,7]
[391234240,1760422248460,-151.0,0.00019884,7]
[391234241,1760422248471,-165.385976,0.00019884,7]
[391234242,1760422248480,-154.884315,0.00019884,7]
[391234243,1760422248489,-154.884315,0.00019884,7]
[391234244,1760422248499,-151.0,0.00019884,7]
[391234245,1760422248508,-154.884315,0.00019884,7]
[391234246,1760422248517,-154.884315,0.00019884,7]
[391234247,1760422248526,-193.963338,0.00019884,7]
[391234248,1760422248536,-193.963338,0.00019884,7]
[391234249,1760422248545,-151.0,0.00019884,7]
[391234250,1760422248554,-193.963338,0.00019884,7]
[391234251,1760422248562,-193.963338,0.00019884,7]
[391234252,1760422248573,-151.0,0.00019884,7]
[391234253,1760422248582,-151.0,0.00019887,7]
[391234254,1760422248591,-156.105652,0.00019887,7]
[391234255,1760422248600,-273.161817,0.00019887,7]